lending/lending_fUSD_20250802
["ID","MTS","AMOUNT","RATE_DAILY","PERIOD"]
[376736359,1754093140030,224.68,0.00013699,2]
[376736361,1754093372173,-197.36003628,0.0001821,2]
[376736365,1754093432499,-583.92996372,0.0001821,2]
[376736366,1754093432508,-19.50003628,0.00019941,2]
[376736367,1754093432555,-761.78996372,0.00019941,2]
[376736368,1754093432565,-224.68,0.00020187,2]
[376736369,1754093432575,-500.0,0.00021178,2]
[376736370,1754093432585,-578.77,0.00021591,2]
[376736371,1754093432595,-781.29,0.00021671,2]
[376736372,1754093432605,-514.0,0.00022213,2]
[376736373,1754093432615,-1200.0,0.00022845,2]
[376736374,1754093432624,-5000.0,0.00022846,2]
[376736377,1754093432634,-1000.0,0.00022894,2]
[376736378,1754093432644,-158.50186737,0.00022914,2]
[376736380,1754093432657,-141.49813263,0.00022914,2]
[376736382,1754093432667,-300.0,0.00022914,2]
[376736383,1754093432677,-165.19,0.00022915,2]
[376736384,1754093432686,-164.29,0.00023208,2]
[376736385,1754093432696,-375.39,0.00023243,7]
[376736387,1754093432706,-178.36,0.00023286,2]
[376736389,1754093432716,-154.98,0.00023319,2]
[376736391,1754093432726,-172.67,0.00023347,30]
[376736393,1754093432737,-781.29,0.00023401,2]
[376736395,1754093432748,-175.0,0.00023435,7]
[376736397,1754093432759,-418.93,0.00023472,2]
[376736399,1754093432772,-413.81,0.00023472,2]
[376736400,1754093432784,-15938.11439013,0.00023511,2]
[376736401,1754093432799,-5720.11402524,0.00023511,2]
[376736403,1754093432826,-420.250824,0.00023511,2]
[376736418,1754093438159,-1888.0,0.00022713,3]
[376736419,1754093438170,-1821.52076063,0.00023511,2]
[376736420,1754093438180,-250.0,0.00023668,2]
[376736421,1754093438190,-841.09740556,0.00023771,2]
[376736422,1754093438199,-211.30576106,0.00023771,2]
[376736423,1754093438209,-150.0,0.000238,2]
[376736424,1754093438219,-817.87,0.00023841,2]
[376736425,1754093438229,-234.69941288,0.000239,10]
[376736426,1754093438239,-514.0,0.00023931,4]
[376736427,1754093438249,-234.6994126,0.00023969,10]
[376736428,1754093438258,-234.6994126,0.00024038,10]
[376736429,1754093438267,-154.09832975,0.00024056,2]
[376736430,1754093438278,-234.6994126,0.00024107,10]
[376736431,1754093438288,-154.09832975,0.00024139,2]
[376736432,1754093438298,-234.6994126,0.00024176,10]
[376736433,1754093438308,-154.09832975,0.00024221,2]
[376736434,1754093438318,-234.6994126,0.00024245,10]
[376736435,1754093438329,-154.09832975,0.00024304,2]
[376736436,1754093438339,-234.6994126,0.00024314,10]
[376736437,1754093438349,-164.29,0.00024368,2]
[376736438,1754093438358,-234.6994126,0.00024383,11]
[376736439,1754093438367,-154.09832975,0.00024387,2]
[376736440,1754093438377,-2074.45523,0.0002441,2]
[376736441,1754093438387,-12249.37389292,0.0002442,2]
[376736442,1754093438497,-349.38153342,0.0002442,2]
[376736443,1754093438511,-826.61846658,0.0002442,2]
[376736444,1754093438543,-430.61029623,0.0002442,2]
[376736447,1754093440327,-1888.0,0.00023213,3]
[376736457,1754093440412,-4907.79449938,0.0002442,2]
[376736459,1754093440424,-6799.64823783,0.0002442,2]
[376736462,1754093440436,-1550.810795,0.0002442,2]
[376736464,1754093440446,-610.94234643,0.0002442,2]
[376736465,1754093440595,-317.27075628,0.0002442,2]
[376736466,1754093440698,-3190.76332,0.0002442,2]
[376736467,1754093440799,-68045.65576253,0.0002442,2]
[376736469,1754093440808,-234.6994126,0.00024452,11]
[376736471,1754093440818,-152.52262816,0.00024457,2]
[376736472,1754093440827,-200.0,0.0002446,2]
[376736473,1754093440837,-154.09832975,0.00024469,2]
[376736474,1754093440847,-152.52262814,0.00024488,2]
[376736475,1754093440857,-30000.0,0.000245,5]
[376736476,1754093440866,-152.52262814,0.00024519,2]
[376736477,1754093440875,-234.6994126,0.00024521,11]
[376736478,1754093440884,-152.52262814,0.00024551,2]
[376736480,1754093440894,-154.09832975,0.00024552,2]
[376736482,1754093440904,-751.6562,0.00024557,2]
[376736483,1754093440914,-5000.0,0.00024557,2]
[376736484,1754093440924,-88888.0,0.00024557,3]
[376736485,1754093440938,-325.88801449,0.00024557,3]
[376736486,1754093440947,-841.09740556,0.00024557,3]
[376736487,1754093440957,-1198.98035028,0.00024557,2]
[376736488,1754093440966,-157.47313577,0.00024557,2]
[376736489,1754093440975,-152.52262814,0.00024582,2]
[376736490,1754093440984,-234.6994126,0.0002459,11]
[376736491,1754093440994,-152.52262814,0.00024613,2]
[376736492,1754093441003,-170.929,0.00024634,7]
[376736493,1754093441012,-2110.008,0.00024634,7]
[376736494,1754093441021,-154.09832975,0.00024635,2]
[376736495,1754093441032,-152.52262814,0.00024644,2]
[376736496,1754093441041,-6909.0973273,0.00024654,2]
[376736497,1754093441050,-500.0,0.00024656,2]
[376736498,1754093441060,-196.12883585,0.00024656,2]
[376736499,1754093441072,-500.0,0.00024656,2]
[376736500,1754093441081,-500.0,0.00024656,2]
[376736501,1754093441090,-436.92998858,0.00024656,2]
[376736502,1754093441100,-500.0,0.00024656,2]
[376736503,1754093441110,-1539.31557,0.00024657,3]
[376736504,1754093441120,-159.691103,0.00024657,3]
[376736505,1754093441129,-160.950545,0.00024657,3]
[376736506,1754093441140,-164.921063,0.00024657,3]
[376736507,1754093441150,-160.950523,0.00024657,3]
[376736508,1754093441159,-153.306977,0.00024657,3]
[376736509,1754093441168,-400.0,0.00024657,3]
[376736510,1754093441177,-400.0,0.00024657,3]
[376736511,1754093441186,-151.196819,0.00024657,3]
[376736512,1754093441196,-159.549636,0.00024657,3]
[376736513,1754093441205,-400.0,0.00024657,3]
[376736514,1754093441215,-432.29826158,0.00024657,3]
[376736515,1754093441224,-400.0,0.00024657,3]
[376736516,1754093441234,-400.0,0.00024657,3]
[376736517,1754093441243,-400.0,0.00024657,3]
[376736518,1754093441252,-400.0,0.00024657,3]
[376736519,1754093441262,-400.0,0.00024657,3]
[376736520,1754093441271,-300.15528332,0.00024657,3]
[376736521,1754093441282,-400.0,0.00024657,3]
[376736522,1754093441291,-400.0,0.00024657,3]
[376736523,1754093441301,-400.0,0.00024657,3]
[376736524,1754093441311,-400.0,0.00024657,3]
[376736525,1754093441320,-402.35021368,0.00024657,3]
[376736526,1754093441329,-400.0,0.00024657,3]
[376736527,1754093441339,-400.0,0.00024657,3]
[376736528,1754093441348,-400.0,0.00024657,3]
[376736529,1754093441357,-228.67384144,0.00024657,3]
[376736530,1754093441366,-400.0,0.00024657,3]
[376736531,1754093441376,-400.0,0.00024657,3]
[376736532,1754093441385,-400.0,0.00024657,3]
[376736533,1754093441395,-400.0,0.00024657,3]
[376736534,1754093441404,-400.0,0.00024657,3]
[376736535,1754093441413,-400.0,0.00024657,3]
[376736536,1754093441422,-400.0,0.00024657,3]
[376736537,1754093441431,-400.0,0.00024657,3]
[376736538,1754093441440,-400.0,0.00024657,3]
[376736539,1754093441450,-400.0,0.00024657,3]
[376736540,1754093441459,-400.0,0.00024657,3]
[376736541,1754093441468,-200.0,0.00024657,2]
[376736542,1754093441477,-400.0,0.00024657,3]
[376736543,1754093441486,-400.0,0.00024657,3]
[376736544,1754093441495,-400.0,0.00024657,3]
[376736545,1754093441505,-400.0,0.00024657,3]
[376736546,1754093441514,-400.0,0.00024657,3]
[376736548,1754093441524,-387.38069472,0.00024657,3]
[376736550,1754093441535,-400.0,0.00024657,3]
[376736552,1754093441544,-400.0,0.00024657,3]
[376736554,1754093441553,-407.16753028,0.00024657,3]
[376736556,1754093441563,-400.0,0.00024657,3]
[376736558,1754093441573,-400.0,0.00024657,3]
[376736560,1754093441583,-404.67419911,0.00024657,3]
[376736562,1754093441592,-400.0,0.00024657,3]
[376736564,1754093441602,-400.0,0.00024657,3]
[376736566,1754093441611,-400.0,0.00024657,3]
[376736568,1754093441621,-400.0,0.00024657,3]
[376736570,1754093441630,-400.0,0.00024657,3]
[376736573,1754093441641,-400.0,0.00024657,3]
[376736575,1754093441651,-325.54950793,0.00024657,3]
[376736577,1754093441660,-400.0,0.00024657,3]
[376736579,1754093441669,-400.0,0.00024657,3]
[376736581,1754093441679,-400.0,0.00024657,3]
[376736583,1754093441689,-400.0,0.00024657,3]
[376736585,1754093441700,-400.0,0.00024657,3]
[376736587,1754093441709,-400.0,0.00024657,3]
[376736589,1754093441719,-400.0,0.00024657,3]
[376736591,1754093441728,-400.0,0.00024657,3]
[376736593,1754093441737,-400.0,0.00024657,3]
[376736595,1754093441747,-400.0,0.00024657,3]
[376736597,1754093441755,-400.0,0.00024657,3]
[376736599,1754093441764,-400.0,0.00024657,3]
[376736601,1754093441773,-400.0,0.00024657,3]
[376736603,1754093441784,-400.0,0.00024657,3]
[376736605,1754093441793,-471.14,0.00024657,3]
[376736607,1754093441802,-400.0,0.00024657,3]
[376736609,1754093441811,-400.0,0.00024657,3]
[376736611,1754093441820,-400.0,0.00024657,3]
[376736613,1754093441831,-400.0,0.00024657,3]
[376736616,1754093441842,-400.0,0.00024657,3]
[376736617,1754093441851,-400.0,0.00024657,3]
[376736619,1754093441860,-400.0,0.00024657,3]
[376736621,1754093441870,-400.0,0.00024657,3]
[376736623,1754093441879,-400.0,0.00024657,3]
[376736625,1754093441888,-400.0,0.00024657,3]
[376736627,1754093441897,-411.21,0.00024657,3]
[376736629,1754093441906,-400.0,0.00024657,3]
[376736631,1754093441915,-400.0,0.00024657,3]
[376736633,1754093441925,-400.0,0.00024657,3]
[376736635,1754093441934,-400.0,0.00024657,3]
[376736637,1754093441943,-400.0,0.00024657,3]
[376736639,1754093441952,-400.0,0.00024657,3]
[376736641,1754093441961,-400.0,0.00024657,3]
[376736643,1754093441970,-400.0,0.00024657,3]
[376736645,1754093441979,-400.0,0.00024657,3]
[376736647,1754093441988,-400.0,0.00024657,3]
[376736649,1754093441997,-400.0,0.00024657,3]
[376736651,1754093442006,-400.0,0.00024657,3]
[376736653,1754093442015,-431.47,0.00024657,3]
[376736655,1754093442024,-400.0,0.00024657,3]
[376736657,1754093442033,-400.0,0.00024657,3]
[376736659,1754093442043,-400.0,0.00024657,3]
[376736661,1754093442051,-400.0,0.00024657,3]
[376736663,1754093442061,-400.0,0.00024657,3]
[376736665,1754093442074,-400.0,0.00024657,3]
[376736667,1754093442086,-400.0,0.00024657,3]
[376736669,1754093442096,-400.0,0.00024657,3]
[376736671,1754093442106,-529.78,0.00024657,3]
[376736673,1754093442116,-400.0,0.00024657,3]
[376736675,1754093442125,-400.0,0.00024657,3]
[376736677,1754093442135,-400.0,0.00024657,3]
[376736680,1754093442145,-400.0,0.00024657,3]
[376736682,1754093442162,-400.0,0.00024657,3]
[376736684,1754093442171,-449.87,0.00024657,3]
[376736686,1754093442181,-400.0,0.00024657,3]
[376736687,1754093442190,-400.0,0.00024657,3]
[376736690,1754093442199,-400.0,0.00024657,3]
[376736692,1754093442208,-400.0,0.00024657,3]
[376736693,1754093442217,-400.0,0.00024657,3]
[376736696,1754093442227,-400.0,0.00024657,3]
[376736697,1754093442236,-400.0,0.00024657,3]
[376736700,1754093442245,-157.39079,0.00024657,3]
[376736702,1754093442254,-400.0,0.00024657,3]
[376736704,1754093442263,-400.0,0.00024657,3]
[376736706,1754093442272,-400.0,0.00024657,3]
[376736708,1754093442281,-400.0,0.00024657,3]
[376736710,1754093442291,-400.0,0.00024657,3]
[376736712,1754093442301,-162.750259,0.00024657,3]
[376736714,1754093442310,-400.0,0.00024657,3]
[376736716,1754093442319,-400.0,0.00024657,3]
[376736718,1754093442329,-168.913094,0.00024657,3]
[376736720,1754093442339,-400.0,0.00024657,3]
[376736722,1754093442348,-400.0,0.00024657,3]
[376736724,1754093442357,-400.0,0.00024657,3]
[376736726,1754093442366,-400.0,0.00024657,3]
[376736728,1754093442377,-400.0,0.00024657,3]
[376736730,1754093442386,-400.0,0.00024657,3]
[376736732,1754093442395,-2610.77,0.00024657,3]
[376736734,1754093442405,-314.70470115,0.00024657,3]
[376736736,1754093442414,-400.0,0.00024657,3]
[376736738,1754093442424,-400.0,0.00024657,3]
[376736740,1754093442433,-400.0,0.00024657,3]
[376736742,1754093442442,-400.0,0.00024657,3]
[376736744,1754093442452,-400.0,0.00024657,3]
[376736746,1754093442461,-400.0,0.00024657,3]
[376736748,1754093442470,-400.0,0.00024657,3]
[376736750,1754093442479,-400.0,0.00024657,3]
[376736752,1754093442488,-400.0,0.00024657,3]
[376736753,1754093442497,-400.0,0.00024657,3]
[376736754,1754093442506,-400.0,0.00024657,3]
[376736755,1754093442516,-411.7825325,0.00024657,3]
[376736756,1754093442525,-400.0,0.00024657,3]
[376736757,1754093442535,-400.0,0.00024657,3]
[376736758,1754093442545,-400.0,0.00024657,3]
[376736759,1754093442555,-400.0,0.00024657,3]
[376736760,1754093442564,-400.0,0.00024657,3]
[376736761,1754093442573,-400.0,0.00024657,3]
[376736762,1754093442582,-400.0,0.00024657,3]
[376736763,1754093442591,-400.0,0.00024657,3]
[376736765,1754093442600,-400.0,0.00024657,3]
[376736766,1754093442609,-251.51903189,0.00024657,3]
[376736768,1754093442619,-400.0,0.00024657,3]
[376736770,1754093442628,-400.0,0.00024657,3]
[376736772,1754093442637,-400.0,0.00024657,3]
[376736774,1754093442646,-400.0,0.00024657,3]
[376736776,1754093442655,-400.0,0.00024657,3]
[376736778,1754093442664,-400.0,0.00024657,3]
[376736780,1754093442673,-400.0,0.00024657,3]
[376736782,1754093442682,-400.0,0.00024657,3]
[376736784,1754093442691,-400.0,0.00024657,3]
[376736786,1754093442700,-400.0,0.00024657,3]
[376736788,1754093442709,-400.0,0.00024657,3]
[376736790,1754093442718,-400.0,0.00024657,3]
[376736792,1754093442728,-400.0,0.00024657,3]
[376736794,1754093442740,-1157.3,0.00024657,3]
[376736796,1754093442748,-402.53538768,0.00024657,3]
[376736798,1754093442758,-400.0,0.00024657,3]
[376736799,1754093442767,-400.0,0.00024657,3]
[376736802,1754093442776,-400.0,0.00024657,3]
[376736804,1754093442787,-400.0,0.00024657,3]
[376736806,1754093442796,-400.0,0.00024657,3]
[376736808,1754093442806,-400.0,0.00024657,3]
[376736810,1754093442815,-400.0,0.00024657,3]
[376736812,1754093442824,-400.0,0.00024657,3]
[376736814,1754093442833,-400.0,0.00024657,3]
[376736816,1754093442842,-400.0,0.00024657,3]
[376736818,1754093442851,-400.0,0.00024657,3]
[376736820,1754093442860,-622.79,0.00024657,3]
[376736822,1754093442869,-400.0,0.00024657,3]
[376736824,1754093442879,-400.0,0.00024657,3]
[376736826,1754093442888,-400.0,0.00024657,3]
[376736828,1754093442897,-400.0,0.00024657,3]
[376736830,1754093442906,-400.0,0.00024657,3]
[376736832,1754093442915,-400.0,0.00024657,3]
[376736834,1754093442924,-400.0,0.00024657,3]
[376736836,1754093442933,-400.0,0.00024657,3]
[376736839,1754093442942,-400.0,0.00024657,3]
[376736841,1754093442951,-400.0,0.00024657,3]
[376736844,1754093442960,-400.0,0.00024657,3]
[376736846,1754093442971,-400.0,0.00024657,3]
[376736848,1754093442980,-400.0,0.00024657,3]
[376736849,1754093442989,-400.0,0.00024657,3]
[376736851,1754093442998,-400.0,0.00024657,3]
[376736854,1754093443008,-400.0,0.00024657,3]
[376736856,1754093443017,-400.0,0.00024657,3]
[376736858,1754093443028,-400.0,0.00024657,3]
[376736860,1754093443038,-400.0,0.00024657,3]
[376736864,1754093443047,-400.0,0.00024657,3]
[376736866,1754093443057,-1051.89,0.00024657,3]
[376736868,1754093443068,-287.450581,0.00024657,3]
[376736870,1754093443078,-400.0,0.00024657,3]
[376736872,1754093443087,-400.0,0.00024657,3]
[376736874,1754093443096,-400.0,0.00024657,3]
[376736876,1754093443107,-400.0,0.00024657,3]
[376736878,1754093443116,-445.56,0.00024657,3]
[376736880,1754093443125,-809.73,0.00024657,3]
[376736882,1754093443135,-400.0,0.00024657,3]
[376736886,1754093443144,-556.62,0.00024657,3]
[376736889,1754093443154,-400.0,0.00024657,3]
[376736892,1754093443163,-400.0,0.00024657,2]
[376736894,1754093443172,-400.0,0.00024657,3]
[376736896,1754093443181,-400.0,0.00024657,3]
[376736898,1754093443190,-400.0,0.00024657,3]
[376736900,1754093443199,-462.33,0.00024657,3]
[376736902,1754093443209,-270.68,0.00024657,3]
[376736904,1754093443218,-1716.63,0.00024657,3]
[376736906,1754093443226,-400.91,0.00024657,3]
[376736908,1754093443235,-919.39,0.00024657,3]
[376736910,1754093443245,-400.0,0.00024657,3]
[376736912,1754093443255,-451.87735053,0.00024657,3]
[376736914,1754093443264,-2531.32,0.00024657,3]
[376736916,1754093443274,-500.28,0.00024657,3]
[376736918,1754093443286,-400.0,0.00024657,3]
[376736920,1754093443295,-400.0,0.00024657,3]
[376736922,1754093443305,-400.0,0.00024657,3]
[376736925,1754093443315,-184.74565965,0.00024657,3]
[376736927,1754093443325,-400.0,0.00024657,3]
[376736928,1754093443334,-700.23,0.00024657,3]
[376736931,1754093443344,-495.30660458,0.00024657,3]
[376736933,1754093443354,-400.0,0.00024657,3]
[376736934,1754093443364,-400.0,0.00024657,3]
[376736937,1754093443374,-687.56,0.00024657,3]
[376736938,1754093443383,-400.0,0.00024657,3]
[376736940,1754093443393,-400.0,0.00024657,3]
[376736942,1754093443403,-400.0,0.00024657,3]
[376736944,1754093443412,-510.25,0.00024657,3]
[376736946,1754093443422,-400.0,0.00024657,3]
[376736948,1754093443431,-1336.65,0.00024657,3]
[376736950,1754093443440,-400.0,0.00024657,3]
[376736952,1754093443450,-683.88,0.00024657,3]
[376736954,1754093443459,-400.0,0.00024657,3]
[376736956,1754093443469,-400.0,0.00024657,3]
[376736958,1754093443478,-1701.44,0.00024657,3]
[376736960,1754093443488,-400.0,0.00024657,3]
[376736962,1754093443498,-400.0,0.00024657,3]
[376736964,1754093443507,-534.5,0.00024657,3]
[376736966,1754093443517,-400.0,0.00024657,3]
[376736968,1754093443526,-400.0,0.00024657,3]
[376736970,1754093443540,-400.0,0.00024657,3]
[376736972,1754093443549,-445.77,0.00024657,3]
[376736975,1754093443559,-400.0,0.00024657,2]
[376736977,1754093443568,-400.0,0.00024657,3]
[376736980,1754093443578,-400.0,0.00024657,3]
[376736982,1754093443588,-400.0,0.00024657,3]
[376736984,1754093443597,-400.0,0.00024657,3]
[376736985,1754093443608,-461.06,0.00024657,3]
[376736987,1754093443618,-413.2,0.00024657,3]
[376736989,1754093443628,-400.0,0.00024657,3]
[376736991,1754093443637,-400.0,0.00024657,3]
[376736993,1754093443647,-400.0,0.00024657,3]
[376736996,1754093443656,-400.0,0.00024657,3]
[376737000,1754093443665,-400.0,0.00024657,3]
[376737003,1754093443675,-400.0,0.00024657,3]
[376737006,1754093443684,-1371.13,0.00024657,3]
[376737010,1754093443693,-893.03,0.00024657,3]
[376737014,1754093443703,-400.0,0.00024657,3]
[376737018,1754093443712,-400.0,0.00024657,3]
[376737021,1754093443722,-400.0,0.00024657,3]
[376737025,1754093443732,-924.66,0.00024657,3]
[376737029,1754093443741,-400.0,0.00024657,3]
[376737033,1754093443754,-400.0,0.00024657,3]
[376737036,1754093443763,-400.0,0.00024657,3]
[376737040,1754093443773,-663.96,0.00024657,3]
[376737043,1754093443785,-400.0,0.00024657,3]
[376737046,1754093443795,-400.0,0.00024657,3]
[376737048,1754093443805,-400.0,0.00024657,3]
[376737050,1754093443815,-1133.46,0.00024657,3]
[376737052,1754093443824,-1430.24,0.00024657,3]
[376737054,1754093443834,-400.0,0.00024657,3]
[376737056,1754093443844,-400.0,0.00024657,3]
[376737058,1754093443854,-400.0,0.00024657,3]
[376737060,1754093443863,-400.0,0.00024657,3]
[376737062,1754093443873,-400.0,0.00024657,3]
[376737064,1754093443883,-248.6535712,0.00024657,3]
[376737066,1754093443894,-400.0,0.00024657,3]
[376737068,1754093443904,-400.0,0.00024657,3]
[376737070,1754093443913,-581.07,0.00024657,3]
[376737072,1754093443923,-400.0,0.00024657,3]
[376737074,1754093443934,-400.0,0.00024657,3]
[376737076,1754093443943,-400.0,0.00024657,3]
[376737078,1754093443953,-400.0,0.00024657,3]
[376737081,1754093443963,-400.0,0.00024657,3]
[376737083,1754093443972,-400.0,0.00024657,3]
[376737085,1754093443982,-400.0,0.00024657,3]
[376737087,1754093443992,-400.0,0.00024657,3]
[376737089,1754093444002,-230.5974874,0.00024657,3]
[376737091,1754093444014,-400.0,0.00024657,3]
[376737093,1754093444024,-400.0,0.00024657,3]
[376737095,1754093444035,-483.09,0.00024657,3]
[376737097,1754093444044,-412.4824727,0.00024657,3]
[376737099,1754093444054,-400.0,0.00024657,3]
[376737101,1754093444066,-598.64,0.00024657,3]
[376737103,1754093444076,-400.0,0.00024657,3]
[376737106,1754093444085,-1027.49,0.00024657,3]
[376737109,1754093444096,-400.0,0.00024657,3]
[376737113,1754093444107,-400.0,0.00024657,3]
[376737115,1754093444116,-200.53199043,0.00024657,3]
[376737117,1754093444126,-5737.08,0.00024657,3]
[376737119,1754093444136,-400.0,0.00024657,3]
[376737121,1754093444147,-400.0,0.00024657,3]
[376737123,1754093444157,-400.0,0.00024657,3]
[376737125,1754093444167,-400.0,0.00024657,3]
[376737127,1754093444176,-400.0,0.00024657,3]
[376737129,1754093444186,-400.0,0.00024657,3]
[376737131,1754093444196,-593.53,0.00024657,3]
[376737133,1754093444205,-922.97,0.00024657,3]
[376737135,1754093444215,-400.0,0.00024657,3]
[376737137,1754093444224,-400.0,0.00024657,3]
[376737139,1754093444234,-400.0,0.00024657,3]
[376737141,1754093444244,-803.61,0.00024657,3]
[376737143,1754093444253,-400.0,0.00024657,3]
[376737145,1754093444263,-1303.54,0.00024657,3]
[376737147,1754093444273,-226.27903633,0.00024657,3]
[376737149,1754093444283,-481.75,0.00024657,3]
[376737151,1754093444293,-400.0,0.00024657,3]
[376737153,1754093444302,-400.0,0.00024657,3]
[376737155,1754093444312,-937.32,0.00024657,3]
[376737157,1754093444321,-400.0,0.00024657,3]
[376737159,1754093444331,-151.927144,0.00024657,3]
[376737161,1754093444341,-400.0,0.00024657,3]
[376737163,1754093444351,-400.0,0.00024657,3]
[376737165,1754093444360,-400.0,0.00024657,3]
[376737167,1754093444370,-400.0,0.00024657,3]
[376737169,1754093444380,-1123.35,0.00024657,3]
[376737171,1754093444390,-400.0,0.00024657,3]
[376737173,1754093444399,-400.0,0.00024657,3]
[376737175,1754093444409,-442.0744865,0.00024657,3]
[376737177,1754093444418,-400.0,0.00024657,3]
[376737179,1754093444428,-400.0,0.00024657,3]
[376737181,1754093444438,-892.91,0.00024657,3]
[376737183,1754093444447,-400.0,0.00024657,3]
[376737185,1754093444457,-400.0,0.00024657,3]
[376737187,1754093444466,-400.0,0.00024657,3]
[376737189,1754093444476,-400.0,0.00024657,3]
[376737191,1754093444486,-400.0,0.00024657,3]
[376737194,1754093444495,-1351.107463,0.00024657,3]
[376737196,1754093444505,-400.0,0.00024657,3]
[376737198,1754093444515,-400.0,0.00024657,3]
[376737200,1754093444524,-400.0,0.00024657,3]
[376737202,1754093444534,-400.0,0.00024657,3]
[376737204,1754093444544,-743.25,0.00024657,3]
[376737206,1754093444554,-400.0,0.00024657,3]
[376737208,1754093444563,-386.85686242,0.00024657,3]
[376737210,1754093444573,-400.0,0.00024657,3]
[376737212,1754093444583,-400.0,0.00024657,3]
[376737214,1754093444593,-400.0,0.00024657,3]
[376737216,1754093444603,-400.0,0.00024657,3]
[376737218,1754093444612,-400.0,0.00024657,3]
[376737220,1754093444623,-2778.65,0.00024657,3]
[376737222,1754093444632,-868.18,0.00024657,3]
[376737224,1754093444642,-400.0,0.00024657,3]
[376737226,1754093444651,-753.75,0.00024657,3]
[376737228,1754093444661,-400.0,0.00024657,3]
[376737230,1754093444671,-2167.3,0.00024657,3]
[376737232,1754093444681,-400.0,0.00024657,3]
[376737234,1754093444690,-983.62,0.00024657,3]
[376737236,1754093444700,-1019.177926,0.00024657,3]
[376737238,1754093444710,-245.94074298,0.00024657,3]
[376737240,1754093444720,-570.81,0.00024657,3]
[376737243,1754093444730,-499.56795971,0.00024657,3]
[376737245,1754093444739,-400.0,0.00024657,3]
[376737247,1754093444749,-400.0,0.00024657,3]
[376737249,1754093444759,-400.0,0.00024657,3]
[376737251,1754093444769,-400.0,0.00024657,3]
[376737253,1754093444779,-400.0,0.00024657,3]
[376737255,1754093444789,-402.33635679,0.00024657,3]
[376737257,1754093444799,-400.0,0.00024657,3]
[376737259,1754093444808,-400.0,0.00024657,3]
[376737261,1754093444819,-400.0,0.00024657,3]
[376737263,1754093444829,-400.0,0.00024657,3]
[376737265,1754093444838,-400.0,0.00024657,3]
[376737267,1754093444848,-400.0,0.00024657,3]
[376737269,1754093444858,-400.0,0.00024657,3]
[376737271,1754093444868,-400.0,0.00024657,3]
[376737273,1754093444878,-400.0,0.00024657,3]
[376737275,1754093444887,-400.0,0.00024657,3]
[376737277,1754093444897,-400.0,0.00024657,3]
[376737279,1754093444907,-400.0,0.00024657,3]
[376737281,1754093444917,-400.0,0.00024657,3]
[376737283,1754093444927,-400.0,0.00024657,3]
[376737285,1754093444937,-400.0,0.00024657,3]
[376737287,1754093444948,-400.0,0.00024657,3]
[376737289,1754093444958,-400.0,0.00024657,3]
[376737291,1754093444967,-400.0,0.00024657,3]
[376737293,1754093444977,-415.79,0.00024657,3]
[376737295,1754093444987,-400.0,0.00024657,3]
[376737297,1754093444997,-400.0,0.00024657,3]